[Event "*** Titled Tuesday Blitz"]
[Site "Chess.com"]
[Date "2018.05.01"]
[Round "2"]
[White "b_6"]
[Black "pultineviciuspaulius"]
[Result "1/2-1/2"]
[WhiteElo "2304"]
[BlackElo "2540"]
[TimeControl "180+2"]
[EndTime "13:22:39 PDT"]
[Termination "Game drawn by repetition"]

1. d4 {[%clk 0:03:01.9]} 1... Nf6 {[%clk 0:03:00.9]} 2. Bf4 {[%clk 0:03:02.6]}
2... g6 {[%clk 0:03:02]} 3. Nc3 {[%clk 0:03:02.8]} 3... Bg7 {[%clk 0:03:03.5]}
4. e4 {[%clk 0:03:04]} 4... d6 {[%clk 0:03:04.3]} 5. Qd2 {[%clk 0:03:04.9]} 5...
Kf8 {[%clk 0:03:05.7]} 6. Bh6 {[%clk 0:02:55.2]} 6... Nc6 {[%clk 0:03:02.2]} 7.
O-O-O {[%clk 0:02:53.1]} 7... e5 {[%clk 0:02:43.1]} 8. dxe5 {[%clk 0:02:45.5]}
8... Nxe5 {[%clk 0:02:45]} 9. h4 {[%clk 0:02:30.7]} 9... Be6 {[%clk 0:02:38.9]}
10. Bxg7+ {[%clk 0:01:52.9]} 10... Kxg7 {[%clk 0:02:40.8]} 11. f4 {[%clk
0:01:54.2]} 11... Neg4 {[%clk 0:02:37.4]} 12. f5 {[%clk 0:01:35]} 12... Bd7
{[%clk 0:02:35.4]} 13. Nf3 {[%clk 0:01:28.3]} 13... h5 {[%clk 0:02:16]} 14. Bd3
{[%clk 0:01:20.8]} 14... Qe7 {[%clk 0:02:16.8]} 15. Kb1 {[%clk 0:01:18]} 15...
Bc6 {[%clk 0:02:15.7]} 16. Rde1 {[%clk 0:01:18.1]} 16... Rhe8 {[%clk 0:02:12.5]}
17. Nd5 {[%clk 0:01:10.4]} 17... Bxd5 {[%clk 0:02:07.6]} 18. exd5 {[%clk
0:01:10.5]} 18... Qd7 {[%clk 0:02:07.5]} 19. fxg6 {[%clk 0:00:47.7]} 19... fxg6
{[%clk 0:02:09.4]} 20. Qg5 {[%clk 0:00:48.4]} 20... Qf7 {[%clk 0:02:07.7]} 21.
Re6 {[%clk 0:00:46.1]} 21... Nf2 {[%clk 0:01:33]} 22. Rhe1 {[%clk 0:00:43.7]}
22... Nxd3 {[%clk 0:01:33.6]} 23. cxd3 {[%clk 0:00:44.9]} 23... c6 {[%clk
0:01:13.4]} 24. Nd4 {[%clk 0:00:43.8]} 24... Ng8 {[%clk 0:00:44.3]} 25. R1e3
{[%clk 0:00:30.5]} 25... Qf1+ {[%clk 0:00:20.8]} 26. Kc2 {[%clk 0:00:31.3]}
26... Qf2+ {[%clk 0:00:22.1]} 27. Kb3 {[%clk 0:00:30.9]} 27... Rxe6 {[%clk
0:00:05.8]} 28. Nxe6+ {[%clk 0:00:31.4]} 28... Kh7 {[%clk 0:00:06.5]} 29. Rf3
{[%clk 0:00:28.5]} 29... Qb6+ {[%clk 0:00:07.7]} 30. Kc2 {[%clk 0:00:29.5]}
30... cxd5 {[%clk 0:00:07.6]} 31. Rf7+ {[%clk 0:00:27.3]} 31... Kh8 {[%clk
0:00:08.9]} 32. b3 {[%clk 0:00:12.9]} 32... Rc8+ {[%clk 0:00:09.6]} 33. Kb2
{[%clk 0:00:14.3]} 33... Qc6 {[%clk 0:00:10.4]} 34. Qd2 {[%clk 0:00:14.2]} 34...
d4 {[%clk 0:00:10.6]} 35. Nxd4 {[%clk 0:00:14.6]} 35... Qd5 {[%clk 0:00:11.9]}
36. Rf4 {[%clk 0:00:14.9]} 36... Qe5 {[%clk 0:00:12.9]} 37. Re4 {[%clk
0:00:15.9]} 37... Qf6 {[%clk 0:00:13.3]} 38. Ka3 {[%clk 0:00:16.2]} 38... d5
{[%clk 0:00:14.2]} 39. Rf4 {[%clk 0:00:16.8]} 39... Qd6+ {[%clk 0:00:15.2]} 40.
Kb2 {[%clk 0:00:17.6]} 40... a6 {[%clk 0:00:14.2]} 41. Rf7 {[%clk 0:00:17.7]}
41... Qe5 {[%clk 0:00:14.1]} 42. Rf4 {[%clk 0:00:18.5]} 42... b5 {[%clk
0:00:14.1]} 43. Qf2 {[%clk 0:00:19.3]} 43... b4 {[%clk 0:00:13.2]} 44. Kb1
{[%clk 0:00:19.8]} 44... Qc7 {[%clk 0:00:12.7]} 45. Qd2 {[%clk 0:00:17.2]} 45...
a5 {[%clk 0:00:10.1]} 46. Ne6 {[%clk 0:00:16.9]} 46... Qe5 {[%clk 0:00:10.7]}
47. Nd4 {[%clk 0:00:17.4]} 47... Re8 {[%clk 0:00:11.4]} 48. Kb2 {[%clk
0:00:17.1]} 48... Qg7 {[%clk 0:00:11.4]} 49. Kb1 {[%clk 0:00:17.8]} 49... Rc8
{[%clk 0:00:10]} 50. Kb2 {[%clk 0:00:17.9]} 50... Nf6 {[%clk 0:00:10.9]} 51. Kb1
{[%clk 0:00:17.6]} 51... Ng4 {[%clk 0:00:12.1]} 52. Ne6 {[%clk 0:00:17.9]} 52...
Qe5 {[%clk 0:00:11.9]} 53. Rxg4 {[%clk 0:00:15.1]} 53... hxg4 {[%clk 0:00:11.5]}
54. Qh6+ {[%clk 0:00:16.1]} 54... Kg8 {[%clk 0:00:12.9]} 55. Qxg6+ {[%clk
0:00:17.2]} 55... Kh8 {[%clk 0:00:14.3]} 56. Qh6+ {[%clk 0:00:17.3]} 56... Kg8
{[%clk 0:00:15.7]} 57. Qg6+ {[%clk 0:00:17.4]} 57... Kh8 {[%clk 0:00:17]} 58.
Qh6+ {[%clk 0:00:15.9]} 58... Kg8 {[%clk 0:00:18.3]} 59. Qg6+ {[%clk 0:00:17.5]}
59... Kh8 {[%clk 0:00:19.6]} 60. Qh6+ {[%clk 0:00:19.1]} 60... Kg8 {[%clk
0:00:21]} 61. Qg6+ {[%clk 0:00:20.7]} 61... Kh8 {[%clk 0:00:22.2]} 62. Qh6+
{[%clk 0:00:22.1]} 62... Kg8 {[%clk 0:00:20.8]} 63. Qg6+ {[%clk 0:00:22.5]}
1/2-1/2

[Event "*** Titled Tuesday Blitz"]
[Site "Chess.com"]
[Date "2018.05.01"]
[Round "2"]
[White "Artur0208"]
[Black "Oleksandr_Bortnyk"]
[Result "0-1"]
[WhiteElo "2384"]
[BlackElo "2778"]
[TimeControl "180+2"]
[EndTime "13:23:11 PDT"]
[Termination "Oleksandr_Bortnyk won by resignation"]

1. d4 {[%clk 0:03:01.6]} 1... Nf6 {[%clk 0:02:53.4]} 2. Nf3 {[%clk 0:03:03.5]}
2... b6 {[%clk 0:02:54.2]} 3. g3 {[%clk 0:03:04.5]} 3... Bb7 {[%clk 0:02:55.6]}
4. Bg2 {[%clk 0:03:06]} 4... g6 {[%clk 0:02:56.7]} 5. O-O {[%clk 0:03:07.7]}
5... Bg7 {[%clk 0:02:58]} 6. c4 {[%clk 0:03:09]} 6... O-O {[%clk 0:02:59.1]} 7.
Nc3 {[%clk 0:03:10.7]} 7... Ne4 {[%clk 0:02:59.9]} 8. Qc2 {[%clk 0:03:09.4]}
8... Nxc3 {[%clk 0:02:59.9]} 9. Qxc3 {[%clk 0:02:57.7]} 9... c5 {[%clk 0:03:00]}
10. Be3 {[%clk 0:02:59.2]} 10... Nc6 {[%clk 0:02:59.7]} 11. Rad1 {[%clk
0:02:59.6]} 11... Rc8 {[%clk 0:03:00.7]} 12. Qd2 {[%clk 0:02:40.8]} 12... Nxd4
{[%clk 0:02:28]} 13. Nxd4 {[%clk 0:02:42.7]} 13... Bxg2 {[%clk 0:02:25]} 14.
Kxg2 {[%clk 0:02:44.6]} 14... cxd4 {[%clk 0:02:26.2]} 15. Bxd4 {[%clk
0:02:46.5]} 15... Bxd4 {[%clk 0:02:27.5]} 16. Qxd4 {[%clk 0:02:48.1]} 16... d6
{[%clk 0:02:29.4]} 17. b3 {[%clk 0:02:48.8]} 17... Rc5 {[%clk 0:02:30]} 18. Rd3
{[%clk 0:02:50.1]} 18... a5 {[%clk 0:02:29]} 19. Rfd1 {[%clk 0:02:50.8]} 19...
Qa8+ {[%clk 0:02:26.7]} 20. f3 {[%clk 0:02:50.9]} 20... Rfc8 {[%clk 0:02:26.4]}
21. a4 {[%clk 0:02:46.3]} 21... Qb7 {[%clk 0:02:16.7]} 22. e4 {[%clk 0:02:46.7]}
22... h5 {[%clk 0:02:14.8]} 23. Qf2 {[%clk 0:02:43.9]} 23... Qd7 {[%clk
0:02:11.1]} 24. Rd5 {[%clk 0:02:44.3]} 24... Qe6 {[%clk 0:02:11.2]} 25. Qd2
{[%clk 0:02:40.6]} 25... Qf6 {[%clk 0:02:10.3]} 26. Rxc5 {[%clk 0:02:31.3]}
26... bxc5 {[%clk 0:01:54.4]} 27. Qxa5 {[%clk 0:02:31.3]} 27... Qb2+ {[%clk
0:01:54.7]} 28. Rd2 {[%clk 0:02:26.7]} 28... Qxb3 {[%clk 0:01:56.6]} 29. Qb5
{[%clk 0:02:28.1]} 29... Qc3 {[%clk 0:01:45.9]} 30. Ra2 {[%clk 0:02:16.5]} 30...
h4 {[%clk 0:01:40.8]} 31. gxh4 {[%clk 0:01:53.2]} 31... Kh7 {[%clk 0:01:02.7]}
32. a5 {[%clk 0:01:51.8]} 32... Rg8 {[%clk 0:00:58.1]} 33. h3 {[%clk 0:01:34]}
33... f5 {[%clk 0:00:47.2]} 34. Re2 {[%clk 0:01:25.5]} 34... g5 {[%clk
0:00:44.6]} 35. exf5 {[%clk 0:00:28.6]} 35... gxh4+ {[%clk 0:00:44.9]} 36. Kf2
{[%clk 0:00:29.1]} 36... Qd4+ {[%clk 0:00:39.5]} 37. Re3 {[%clk 0:00:30.5]}
37... Qd2+ {[%clk 0:00:24.4]} 38. Re2 {[%clk 0:00:31.6]} 38... Qd4+ {[%clk
0:00:16]} 39. Re3 {[%clk 0:00:32.5]} 39... Qd1 {[%clk 0:00:11.5]} 40. Rxe7+
{[%clk 0:00:26.2]} 40... Kh6 {[%clk 0:00:12.8]} 41. Re6+ {[%clk 0:00:26.5]}
41... Kh5 {[%clk 0:00:13.4]} 42. Rg6 {[%clk 0:00:23]} 42... Qd2+ {[%clk
0:00:12.5]} 43. Kf1 {[%clk 0:00:24.4]} 43... Qd3+ {[%clk 0:00:13]} 44. Kf2
{[%clk 0:00:25.9]} 44... Qd2+ {[%clk 0:00:12.7]} 45. Kf1 {[%clk 0:00:27.3]}
45... Qd3+ {[%clk 0:00:09]} 46. Kf2 {[%clk 0:00:28.9]} 46... Qd4+ {[%clk
0:00:10]} 47. Ke2 {[%clk 0:00:26]} 47... Qe5+ {[%clk 0:00:10.5]} 48. Kd1 {[%clk
0:00:27.6]} 48... Rf8 {[%clk 0:00:09.2]} 49. Qd7 {[%clk 0:00:21]} 49... Qd4+
{[%clk 0:00:10.3]} 50. Ke2 {[%clk 0:00:21.2]} 50... Qxc4+ {[%clk 0:00:11.2]} 51.
Kf2 {[%clk 0:00:22.6]} 51... Rf7 {[%clk 0:00:05.4]} 52. Qe8 {[%clk 0:00:22.6]}
52... Qd4+ {[%clk 0:00:04.4]} 53. Ke2 {[%clk 0:00:22.2]} 53... Qb2+ {[%clk
0:00:03.9]} 54. Ke3 {[%clk 0:00:22.7]} 54... Qc3+ {[%clk 0:00:04.3]} 55. Kf4
{[%clk 0:00:19.3]} 55... Qd4+ {[%clk 0:00:02.9]} 56. Qe4 {[%clk 0:00:20.2]}
56... Qd2+ {[%clk 0:00:04.1]} 57. Qe3 {[%clk 0:00:21.8]} 57... Qh2+ {[%clk
0:00:05.1]} 58. Ke4 {[%clk 0:00:20.1]} 58... Qe5+ {[%clk 0:00:07]} 59. Kd3
{[%clk 0:00:20.4]} 59... Qxf5+ {[%clk 0:00:08.9]} 60. Qe4 {[%clk 0:00:22]} 60...
Qxg6 {[%clk 0:00:10]} 61. Qxg6+ {[%clk 0:00:23.4]} 61... Kxg6 {[%clk 0:00:11.2]}
62. Kc4 {[%clk 0:00:25.3]} 62... Rxf3 {[%clk 0:00:12.2]} 63. Kd5 {[%clk
0:00:27.2]} 63... Rxh3 {[%clk 0:00:13.2]} 64. Kxd6 {[%clk 0:00:27.3]} 64... Ra3
{[%clk 0:00:15.1]} 65. Kxc5 {[%clk 0:00:28.9]} 65... Rxa5+ {[%clk 0:00:16.2]}
66. Kb4 {[%clk 0:00:30.2]} 66... Rg5 {[%clk 0:00:18.1]} 0-1

[Event "*** Titled Tuesday Blitz"]
[Site "Chess.com"]
[Date "2018.05.01"]
[Round "2"]
[White "Muracle"]
[Black "SCIM"]
[Result "0-1"]
[WhiteElo "2393"]
[BlackElo "2377"]
[TimeControl "180+2"]
[EndTime "13:23:17 PDT"]
[Termination "SCIM won by resignation"]

1. Nf3 {[%clk 0:03:01.9]} 1... d5 {[%clk 0:02:59.5]} 2. g3 {[%clk 0:03:02.1]}
2... Nf6 {[%clk 0:02:59.4]} 3. Bg2 {[%clk 0:03:03.5]} 3... g6 {[%clk 0:03:00.2]}
4. O-O {[%clk 0:03:05.4]} 4... Bg7 {[%clk 0:03:01.3]} 5. c4 {[%clk 0:03:06.6]}
5... dxc4 {[%clk 0:02:59.7]} 6. Qa4+ {[%clk 0:03:06.3]} 6... Nbd7 {[%clk
0:02:58.4]} 7. Qxc4 {[%clk 0:03:06.7]} 7... O-O {[%clk 0:02:58.9]} 8. d3 {[%clk
0:03:07.1]} 8... c6 {[%clk 0:02:47.6]} 9. Qc2 {[%clk 0:03:06.9]} 9... Nb6 {[%clk
0:02:42]} 10. Nc3 {[%clk 0:03:07.9]} 10... Nbd5 {[%clk 0:02:39.1]} 11. Rd1
{[%clk 0:03:07.1]} 11... Nxc3 {[%clk 0:02:37.9]} 12. bxc3 {[%clk 0:03:07.6]}
12... Bd7 {[%clk 0:02:32.7]} 13. Rb1 {[%clk 0:03:07]} 13... b6 {[%clk
0:02:32.2]} 14. c4 {[%clk 0:03:06.7]} 14... Rc8 {[%clk 0:02:31.3]} 15. c5 {[%clk
0:03:01.7]} 15... b5 {[%clk 0:02:28.2]} 16. Bb2 {[%clk 0:03:01.9]} 16... Be6
{[%clk 0:02:23.5]} 17. Ba1 {[%clk 0:02:57.5]} 17... Bd5 {[%clk 0:02:14.9]} 18.
e4 {[%clk 0:02:57.8]} 18... Be6 {[%clk 0:02:15.5]} 19. d4 {[%clk 0:02:58.9]}
19... Bg4 {[%clk 0:02:10]} 20. h3 {[%clk 0:02:57]} 20... Bxf3 {[%clk 0:02:10.3]}
21. Bxf3 {[%clk 0:02:58.9]} 21... Nd7 {[%clk 0:02:10.1]} 22. Rbc1 {[%clk
0:02:54.7]} 22... e5 {[%clk 0:01:58]} 23. d5 {[%clk 0:02:49.7]} 23... cxd5
{[%clk 0:01:56.3]} 24. Rxd5 {[%clk 0:02:51.6]} 24... Qe7 {[%clk 0:01:51.1]} 25.
Bg4 {[%clk 0:02:51.7]} 25... Rc7 {[%clk 0:01:14.3]} 26. Bb2 {[%clk 0:02:47]}
26... Nf6 {[%clk 0:01:13.1]} 27. Rxe5 {[%clk 0:02:37.1]} 27... Qd8 {[%clk
0:01:13.4]} 28. Be2 {[%clk 0:02:25.1]} 28... Qc8 {[%clk 0:01:06.5]} 29. Kg2
{[%clk 0:02:22.1]} 29... a6 {[%clk 0:01:01.7]} 30. g4 {[%clk 0:02:17.9]} 30...
Nd7 {[%clk 0:00:51.8]} 31. Rd5 {[%clk 0:02:17.9]} 31... Bxb2 {[%clk 0:00:52.4]}
32. Qxb2 {[%clk 0:02:19]} 32... Nxc5 {[%clk 0:00:53.8]} 33. Qe5 {[%clk 0:02:20]}
33... Ne6 {[%clk 0:00:49.8]} 34. Rxc7 {[%clk 0:02:20.2]} 34... Qxc7 {[%clk
0:00:50.7]} 35. Qxc7 {[%clk 0:02:20.9]} 35... Nxc7 {[%clk 0:00:51.6]} 36. Rc5
{[%clk 0:02:21.5]} 36... Ne6 {[%clk 0:00:51.3]} 37. Rc2 {[%clk 0:02:15.8]} 37...
Rd8 {[%clk 0:00:48.7]} 38. Bf1 {[%clk 0:02:13.9]} 38... Rd4 {[%clk 0:00:45.3]}
39. f3 {[%clk 0:02:13.7]} 39... Ra4 {[%clk 0:00:43.2]} 40. Kg3 {[%clk
0:02:13.2]} 40... Ra3 {[%clk 0:00:43.2]} 41. Bg2 {[%clk 0:02:13]} 41... g5
{[%clk 0:00:42.5]} 42. h4 {[%clk 0:02:13]} 42... h6 {[%clk 0:00:40.7]} 43. Rd2
{[%clk 0:02:09]} 43... Kg7 {[%clk 0:00:40]} 44. h5 {[%clk 0:02:06.6]} 44... b4
{[%clk 0:00:39.2]} 45. Bf1 {[%clk 0:02:06.7]} 45... a5 {[%clk 0:00:31.1]} 46.
Bc4 {[%clk 0:02:07.4]} 46... Rc3 {[%clk 0:00:23.7]} 47. Bb3 {[%clk 0:02:04.9]}
47... Nc5 {[%clk 0:00:24.4]} 48. Bd5 {[%clk 0:02:03.7]} 48... Nd3 {[%clk
0:00:21.7]} 49. Bb3 {[%clk 0:01:54.1]} 49... Ne5 {[%clk 0:00:21]} 50. Rf2 {[%clk
0:01:48.4]} 50... Kf6 {[%clk 0:00:21.2]} 51. Kg2 {[%clk 0:01:48.6]} 51... Nd3
{[%clk 0:00:21.2]} 52. Rd2 {[%clk 0:01:48.1]} 52... Ne1+ {[%clk 0:00:21.6]} 53.
Kf2 {[%clk 0:01:47.3]} 53... Nxf3 {[%clk 0:00:22.2]} 54. Rd6+ {[%clk 0:01:46.8]}
54... Kg7 {[%clk 0:00:22.9]} 55. Rd5 {[%clk 0:01:44.7]} 55... Nh2 {[%clk
0:00:20.4]} 56. Rxa5 {[%clk 0:01:42.7]} 56... Nxg4+ {[%clk 0:00:20.4]} 57. Kg2
{[%clk 0:01:44]} 57... Nf6 {[%clk 0:00:20.8]} 58. e5 {[%clk 0:01:43.5]} 58...
Nxh5 {[%clk 0:00:20.9]} 59. Ra7 {[%clk 0:01:44.1]} 59... Nf4+ {[%clk 0:00:21.5]}
60. Kf2 {[%clk 0:01:44.7]} 60... Kg6 {[%clk 0:00:20.5]} 61. Bxf7+ {[%clk
0:01:42.1]} 61... Kf5 {[%clk 0:00:20.7]} 62. e6 {[%clk 0:01:43.2]} 62... Nxe6
{[%clk 0:00:20.4]} 63. Ra6 {[%clk 0:01:39.8]} 63... Rc2+ {[%clk 0:00:17.5]} 64.
Ke3 {[%clk 0:01:39.1]} 64... Nf4 {[%clk 0:00:17.8]} 65. Rxh6 {[%clk 0:01:36.2]}
65... Re2+ {[%clk 0:00:18.2]} 66. Kf3 {[%clk 0:01:36]} 66... Re7 {[%clk
0:00:18.8]} 67. Bb3 {[%clk 0:01:28.2]} 67... g4+ {[%clk 0:00:19.7]} 68. Kg3
{[%clk 0:01:27.4]} 68... Re3+ {[%clk 0:00:20.6]} 69. Kf2 {[%clk 0:01:28.7]}
69... Rf3+ {[%clk 0:00:21.7]} 70. Kg1 {[%clk 0:01:26.2]} 70... g3 {[%clk
0:00:22.2]} 71. Rh8 {[%clk 0:01:24.1]} 71... Rf2 {[%clk 0:00:20.1]} 72. Rf8+
{[%clk 0:01:24.9]} 72... Ke5 {[%clk 0:00:20.7]} 73. Re8+ {[%clk 0:01:25.6]}
73... Kd4 {[%clk 0:00:21.5]} 74. Kh1 {[%clk 0:01:10.8]} 74... Rh2+ {[%clk
0:00:19.2]} 75. Kg1 {[%clk 0:01:11.4]} 75... Nh3+ {[%clk 0:00:19.9]} 76. Kf1
{[%clk 0:01:12.2]} 76... g2+ {[%clk 0:00:21.5]} 77. Ke2 {[%clk 0:01:13.3]} 0-1

[Event "*** Titled Tuesday Blitz"]
[Site "Chess.com"]
[Date "2018.05.01"]
[Round "2"]
[White "DrZeiss"]
[Black "Karina_Oparina"]
[Result "1-0"]
[WhiteElo "2205"]
[BlackElo "2086"]
[TimeControl "180+2"]
[EndTime "13:23:17 PDT"]
[Termination "DrZeiss won by resignation"]

1. e4 {[%clk 0:03:01.9]} 1... c6 {[%clk 0:03:00.4]} 2. d4 {[%clk 0:03:02]} 2...
d5 {[%clk 0:03:01]} 3. Nd2 {[%clk 0:03:02.9]} 3... dxe4 {[%clk 0:03:01.7]} 4.
Nxe4 {[%clk 0:03:04]} 4... Bf5 {[%clk 0:03:02.3]} 5. Nc5 {[%clk 0:03:04.7]} 5...
b6 {[%clk 0:03:02.2]} 6. Nb3 {[%clk 0:03:01.4]} 6... e6 {[%clk 0:03:02.8]} 7.
Nf3 {[%clk 0:03:01.5]} 7... Bd6 {[%clk 0:03:02.2]} 8. Bd3 {[%clk 0:03:00.5]}
8... Ne7 {[%clk 0:02:57.5]} 9. O-O {[%clk 0:03:00.1]} 9... O-O {[%clk
0:02:57.3]} 10. c4 {[%clk 0:02:58.3]} 10... Nd7 {[%clk 0:02:50.1]} 11. Be3
{[%clk 0:02:54.6]} 11... Bxd3 {[%clk 0:02:38.8]} 12. Qxd3 {[%clk 0:02:55]} 12...
e5 {[%clk 0:02:28.5]} 13. Ng5 {[%clk 0:02:42.1]} 13... Ng6 {[%clk 0:02:23.1]}
14. d5 {[%clk 0:02:27.7]} 14... c5 {[%clk 0:02:19.1]} 15. Rad1 {[%clk 0:02:09]}
15... Be7 {[%clk 0:02:05.8]} 16. Ne4 {[%clk 0:01:46.2]} 16... f5 {[%clk
0:02:06]} 17. Nc3 {[%clk 0:01:46.7]} 17... e4 {[%clk 0:02:05.6]} 18. Qc2 {[%clk
0:01:42.7]} 18... Bd6 {[%clk 0:01:51.7]} 19. f4 {[%clk 0:01:35.9]} 19... exf3
{[%clk 0:01:37]} 20. Rxf3 {[%clk 0:01:36.4]} 20... Nde5 {[%clk 0:01:37.4]} 21.
Rxf5 {[%clk 0:01:30.4]} 21... Nxc4 {[%clk 0:01:37.7]} 22. Bg5 {[%clk 0:01:23.1]}
22... Qd7 {[%clk 0:01:25.5]} 23. Rxf8+ {[%clk 0:01:22.1]} 23... Rxf8 {[%clk
0:01:23.4]} 24. Ne4 {[%clk 0:01:21.9]} 24... Nce5 {[%clk 0:01:11.3]} 25. Nbd2
{[%clk 0:01:14.7]} 25... h6 {[%clk 0:01:00.1]} 26. Nxd6 {[%clk 0:01:08.5]} 26...
Qxd6 {[%clk 0:00:59.7]} 27. Ne4 {[%clk 0:01:06.2]} 27... Qd7 {[%clk 0:00:56.1]}
28. Bc1 {[%clk 0:01:02.9]} 28... Qg4 {[%clk 0:00:51.4]} 29. h3 {[%clk
0:00:58.5]} 29... Qf5 {[%clk 0:00:39.9]} 30. d6 {[%clk 0:00:53.5]} 30... Nd7
{[%clk 0:00:35.5]} 31. Qc4+ {[%clk 0:00:45.9]} 31... Qf7 {[%clk 0:00:35.7]} 32.
Qd3 {[%clk 0:00:35.1]} 32... Nge5 {[%clk 0:00:34.9]} 33. Qg3 {[%clk 0:00:34.2]}
33... Qg6 {[%clk 0:00:33.1]} 34. Qxg6 {[%clk 0:00:30.5]} 34... Nxg6 {[%clk
0:00:33.9]} 35. Nc3 {[%clk 0:00:27.9]} 35... Nge5 {[%clk 0:00:22.1]} 36. Nb5
{[%clk 0:00:28.1]} 36... a6 {[%clk 0:00:21.1]} 37. Nc7 {[%clk 0:00:28.7]} 37...
a5 {[%clk 0:00:22]} 38. Nd5 {[%clk 0:00:26]} 38... Nc4 {[%clk 0:00:21]} 39. b3
{[%clk 0:00:25]} 39... Nxd6 {[%clk 0:00:20.4]} 40. Nxb6 {[%clk 0:00:25.8]} 40...
Nxb6 {[%clk 0:00:20.6]} 41. Rxd6 {[%clk 0:00:26.7]} 41... Rf6 {[%clk 0:00:20.9]}
42. Rxf6 {[%clk 0:00:26.2]} 42... gxf6 {[%clk 0:00:21.7]} 43. Bxh6 {[%clk
0:00:27.8]} 43... c4 {[%clk 0:00:23]} 44. bxc4 {[%clk 0:00:28.1]} 44... Nxc4
{[%clk 0:00:23.1]} 45. Kf2 {[%clk 0:00:29.1]} 45... Ne5 {[%clk 0:00:21.1]} 46.
Ke2 {[%clk 0:00:28.5]} 46... Kf7 {[%clk 0:00:21.1]} 47. Kd2 {[%clk 0:00:27.3]}
47... Kg6 {[%clk 0:00:20.7]} 48. Bf4 {[%clk 0:00:26]} 48... Nc6 {[%clk
0:00:20.1]} 49. Kc3 {[%clk 0:00:25.3]} 49... Nb4 {[%clk 0:00:20.9]} 50. Kb3
{[%clk 0:00:22.6]} 50... Nd3 {[%clk 0:00:21.4]} 51. Bd6 {[%clk 0:00:21.2]} 51...
Ne1 {[%clk 0:00:21.1]} 52. g4 {[%clk 0:00:20.9]} 52... Nd3 {[%clk 0:00:20.9]}
53. Ka4 {[%clk 0:00:20]} 53... Nf2 {[%clk 0:00:21.4]} 54. Kxa5 {[%clk
0:00:20.5]} 54... Nxh3 {[%clk 0:00:21.5]} 55. Kb5 {[%clk 0:00:20.9]} 55... Nf2
{[%clk 0:00:22]} 56. a4 {[%clk 0:00:21.5]} 56... Ne4 {[%clk 0:00:22.8]} 57. Bb4
{[%clk 0:00:20.2]} 57... Ng5 {[%clk 0:00:20.3]} 58. a5 {[%clk 0:00:20.6]} 58...
Ne6 {[%clk 0:00:21.1]} 59. Bd6 {[%clk 0:00:20.9]} 59... Nd4+ {[%clk 0:00:21]}
60. Kb6 {[%clk 0:00:21.4]} 60... Nc2 {[%clk 0:00:17.4]} 61. a6 {[%clk
0:00:21.1]} 61... Ne3 {[%clk 0:00:16.9]} 62. a7 {[%clk 0:00:21.1]} 62... Nc4+
{[%clk 0:00:17.4]} 63. Kc7 {[%clk 0:00:20.6]} 63... Na3 {[%clk 0:00:14.8]} 64.
a8=Q {[%clk 0:00:19.9]} 64... Nb5+ {[%clk 0:00:15]} 65. Kd7 {[%clk 0:00:20.8]}
65... Nxd6 {[%clk 0:00:15.3]} 66. Kxd6 {[%clk 0:00:21.8]} 66... Kg5 {[%clk
0:00:16.2]} 67. Qg8+ {[%clk 0:00:22.8]} 1-0

[Event "*** Titled Tuesday Blitz"]
[Site "Chess.com"]
[Date "2018.05.01"]
[Round "2"]
[White "Siemba"]
[Black "FearlessKing64"]
[Result "0-1"]
[WhiteElo "2029"]
[BlackElo "2184"]
[TimeControl "180+2"]
[EndTime "13:23:19 PDT"]
[Termination "FearlessKing64 won by resignation"]

1. e4 {[%clk 0:03:01.9]} 1... c5 {[%clk 0:02:59.5]} 2. Nf3 {[%clk 0:03:02.1]}
2... d6 {[%clk 0:03:00.5]} 3. d4 {[%clk 0:03:01.2]} 3... cxd4 {[%clk 0:03:02.4]}
4. Nxd4 {[%clk 0:03:03.1]} 4... Nf6 {[%clk 0:03:03.2]} 5. Nc3 {[%clk 0:03:04.5]}
5... a6 {[%clk 0:03:04.6]} 6. Be3 {[%clk 0:03:04.7]} 6... e5 {[%clk 0:03:05.5]}
7. Nb3 {[%clk 0:03:05.1]} 7... Be6 {[%clk 0:03:06.8]} 8. f3 {[%clk 0:03:03]}
8... Be7 {[%clk 0:03:07.2]} 9. Qd2 {[%clk 0:03:01.5]} 9... O-O {[%clk
0:03:07.6]} 10. O-O-O {[%clk 0:03:02.8]} 10... Nbd7 {[%clk 0:03:08.4]} 11. g4
{[%clk 0:03:04.3]} 11... b5 {[%clk 0:03:08.8]} 12. g5 {[%clk 0:03:05.2]} 12...
b4 {[%clk 0:03:09.9]} 13. Ne2 {[%clk 0:03:06.3]} 13... Ne8 {[%clk 0:03:09.9]}
14. f4 {[%clk 0:03:03.2]} 14... a5 {[%clk 0:03:10.7]} 15. f5 {[%clk 0:03:04.2]}
15... Bxb3 {[%clk 0:03:11.7]} 16. cxb3 {[%clk 0:03:04.5]} 16... a4 {[%clk
0:03:13.5]} 17. bxa4 {[%clk 0:03:05.8]} 17... Rxa4 {[%clk 0:03:15.3]} 18. Kb1
{[%clk 0:03:06.6]} 18... Rxa2 {[%clk 0:03:16.3]} 19. Nc1 {[%clk 0:02:13.6]}
19... Ra8 {[%clk 0:03:15.7]} 20. Bc4 {[%clk 0:02:13.2]} 20... Qc7 {[%clk
0:03:10.4]} 21. Qd5 {[%clk 0:02:05.1]} 21... Ra5 {[%clk 0:02:55.9]} 22. Bb5
{[%clk 0:02:05.5]} 22... Qb8 {[%clk 0:02:45.1]} 23. Bxd7 {[%clk 0:01:49.1]}
23... Rxd5 {[%clk 0:02:40.6]} 24. Rxd5 {[%clk 0:01:51]} 24... Nc7 {[%clk
0:02:38.3]} 25. Rd2 {[%clk 0:01:39.7]} 25... Rd8 {[%clk 0:02:35.6]} 26. Ba4
{[%clk 0:01:39.7]} 26... d5 {[%clk 0:02:36.4]} 27. exd5 {[%clk 0:01:22.1]} 27...
Nxd5 {[%clk 0:02:30.2]} 28. f6 {[%clk 0:01:15.8]} 28... Bxf6 {[%clk 0:02:10.2]}
29. Rxd5 {[%clk 0:00:53.2]} 29... Rxd5 {[%clk 0:02:04.2]} 30. gxf6 {[%clk
0:00:54.6]} 30... Qa8 {[%clk 0:01:36.4]} 31. Bb3 {[%clk 0:00:28]} 31... Rd6
{[%clk 0:01:35.7]} 32. Re1 {[%clk 0:00:19.9]} 32... Rxf6 {[%clk 0:01:27.4]} 33.
Bd2 {[%clk 0:00:16.6]} 33... Rf2 {[%clk 0:01:14.4]} 34. Bxb4 {[%clk 0:00:15.4]}
34... Qb8 {[%clk 0:00:55.4]} 35. Bc3 {[%clk 0:00:15.5]} 35... h6 {[%clk
0:00:37.7]} 36. Rxe5 {[%clk 0:00:11.9]} 36... Rf1 {[%clk 0:00:31.3]} 37. Kc2
{[%clk 0:00:09.4]} 37... Rxc1+ {[%clk 0:00:31]} 38. Kxc1 {[%clk 0:00:09.6]}
38... Qxb3 {[%clk 0:00:32.1]} 39. Re2 {[%clk 0:00:09.4]} 39... g5 {[%clk
0:00:24.2]} 40. Rg2 {[%clk 0:00:08.1]} 40... Kh7 {[%clk 0:00:25]} 41. h4 {[%clk
0:00:08.6]} 41... Kg6 {[%clk 0:00:23.3]} 42. hxg5 {[%clk 0:00:09.1]} 42... hxg5
{[%clk 0:00:24.9]} 43. Rd2 {[%clk 0:00:09.4]} 43... Qe6 {[%clk 0:00:23.4]} 44.
Kc2 {[%clk 0:00:09]} 44... Qe4+ {[%clk 0:00:23.2]} 45. Kd1 {[%clk 0:00:09.4]}
45... g4 {[%clk 0:00:24.3]} 46. Rd4 {[%clk 0:00:08.4]} 46... Qf3+ {[%clk
0:00:25.3]} 47. Kc2 {[%clk 0:00:08.9]} 47... g3 {[%clk 0:00:26.6]} 48. Rd6+
{[%clk 0:00:09.7]} 48... Kg5 {[%clk 0:00:24.1]} 49. Rd3 {[%clk 0:00:11.6]} 49...
Qe4 {[%clk 0:00:21.5]} 50. Bd2+ {[%clk 0:00:11.2]} 50... Kg4 {[%clk 0:00:21.5]}
51. Be3 {[%clk 0:00:12.6]} 51... g2 {[%clk 0:00:22]} 52. Kd2 {[%clk 0:00:13.8]}
52... Qxe3+ {[%clk 0:00:22.1]} 53. Rxe3 {[%clk 0:00:14.5]} 53... g1=Q {[%clk
0:00:23.6]} 54. Re4+ {[%clk 0:00:14.8]} 54... Kf5 {[%clk 0:00:23.6]} 55. Rc4
{[%clk 0:00:13.8]} 55... Qf2+ {[%clk 0:00:24.8]} 56. Kc3 {[%clk 0:00:14.8]}
56... Qe3+ {[%clk 0:00:24.7]} 57. Kb4 {[%clk 0:00:15.6]} 57... Ke6 {[%clk
0:00:26]} 58. b3 {[%clk 0:00:16.2]} 58... f5 {[%clk 0:00:27.2]} 59. Ka4 {[%clk
0:00:14.4]} 59... f4 {[%clk 0:00:28.1]} 60. b4 {[%clk 0:00:14.8]} 60... f3
{[%clk 0:00:29.2]} 61. Rc8 {[%clk 0:00:14.3]} 61... Kd7 {[%clk 0:00:29.3]} 62.
Rc3 {[%clk 0:00:08.3]} 62... Qxc3 {[%clk 0:00:27.6]} 0-1